bitfinex-derivatives/quotes_SOLF0:USTF0_20220110
["timestamp","ask_amount","ask_price","bid_price","bid_amount"]
[1641781231200,0.81276987,139.64,139.53,30.24011971]
[1641781231400,4.0,139.63,139.55,4.06415502]
[1641781231605,4.0,139.62,139.55,4.06415502]
[1641781231800,4.81276987,139.62,139.54,4.06415502]
[1641781232102,0.81276987,139.62,139.54,4.06415502]
[1641781232304,31.66479,139.6,139.53,4.06415502]
[1641781232502,45.27978985,139.6,139.53,4.06415502]
[1641781232703,4.81276987,139.59,139.53,4.06415502]
[1641781233104,0.81276987,139.58,139.53,4.06415502]
[1641781236504,27.66479,139.57,139.53,4.06415502]
[1641781236905,0.81276987,139.56,139.53,4.06415502]
[1641781237106,10.54519402,139.56,139.48,1.791]
[1641781237305,5.73361443,139.53,139.47,15.15542232]
[1641781237505,16.56361443,139.53,139.47,15.15542232]
[1641781237707,16.56361443,139.53,139.44,15.15542232]
[1641781238408,1.04708427,139.52,139.45,4.06667229]
[1641781238807,9.66408427,139.52,139.45,4.06667229]
[1641781239009,13.66408427,139.52,139.45,4.06667229]
[1641781239209,4.0,139.5,139.44,4.06667229]
[1641781239408,10.78179846,139.51,139.44,4.06667229]
[1641781239610,1.04708427,139.49,139.44,4.06667229]
[1641781239809,6.78261569,139.49,139.44,4.06667229]
[1641781240210,1.04708427,139.48,139.44,4.06667229]
[1641781240911,33.40032142,139.49,139.44,4.06667229]
[1641781241311,0.81349857,139.48,139.44,4.06667229]
[1641781242413,5.73553142,139.49,139.44,4.06667229]
[1641781242615,5.73416557,139.52,139.44,12.10567229]
[1641781243015,0.81338308,139.51,139.45,4.06667229]
[1641781243415,0.81338308,139.51,139.47,4.0]
[1641781243615,8.308e-05,139.51,139.47,12.683]
[1641781243815,8.25402571,139.57,139.48,4.06667229]
[1641781244015,12.25402571,139.57,139.48,4.06667229]
[1641781244215,12.25402571,139.57,139.48,28.46104162]
[1641781244614,27.66479,139.56,139.48,28.46104162]
[1641781245015,27.66479,139.56,139.48,4.06667229]
[1641781245016,0.81316311,139.55,139.48,4.06667229]
[1641781248519,0.81316311,139.55,139.48,5.85767229]
[1641781248717,0.81316311,139.55,139.51,27.66479]
[1641781248918,0.81316311,139.55,139.51,36.40979]
[1641781249118,0.81316311,139.56,139.52,4.06667229]
[1641781251821,0.81316311,139.56,139.52,17.06767229]
[1641781252021,27.66479,139.62,139.54,4.0]
[1641781252423,25.05602821,139.63,139.55,4.0]
[1641781252622,15.15542232,139.63,139.55,9.34]
[1641781252824,15.15542232,139.63,139.57,27.66479]
[1641781253023,4.0,139.65,139.57,27.66479]
[1641781253224,9.7293361,139.64,139.53,55.8417]
[1641781253423,4.0,139.63,139.53,54.0507]
[1641781253624,4.0,139.63,139.58,4.06431013]
[1641781253822,0.81286203,139.62,139.54,4.06431013]
[1641781254925,0.81286203,139.62,139.54,31.72910013]
[1641781255124,28.47765203,139.63,139.54,31.72910013]
[1641781255526,0.81286203,139.62,139.55,4.06431013]
[1641781258831,0.81286203,139.62,139.55,8.06431013]
[1641781259230,0.81286203,139.62,139.56,4.06431013]
[1641781262236,6.5428798,139.62,139.56,4.06431013]
[1641781262536,5.73125855,139.59,139.55,4.06431013]
[1641781262738,0.81286203,139.58,139.53,4.06431013]
[1641781264640,54.7857,139.65,139.56,4.0]
[1641781264840,0.81282784,139.62,139.56,6.128]
[1641781265040,0.81282784,139.62,139.6,27.66479]
[1641781265241,5.72950281,139.63,139.54,2.47559776]
[1641781265440,9.72950281,139.63,139.54,2.47559776]
[1641781265640,5.72992895,139.62,139.54,2.47559776]
[1641781265840,5.72992895,139.62,139.53,7.16075904]
[1641781266040,0.81287562,139.61,139.55,4.06437809]
[1641781266439,0.81287562,139.61,139.54,4.06437809]
[1641781266941,28.47766562,139.61,139.54,4.06437809]
[1641781267343,0.81287562,139.6,139.54,4.06437809]
[1641781267545,7.90187562,139.6,139.54,4.06437809]
[1641781267842,7.90187562,139.6,139.53,4.06437809]
[1641781268043,0.81287562,139.59,139.55,4.06437809]
[1641781268442,6.54419466,139.59,139.53,4.06437809]
[1641781268843,0.81287562,139.58,139.53,4.06437809]
[1641781269144,27.66479,139.57,139.53,4.06437809]
[1641781269343,9.73251961,139.56,139.51,4.06437809]
[1641781270043,0.81287562,139.55,139.51,4.06437809]
[1641781270544,0.81287562,139.55,139.48,4.06437809]
[1641781270545,4.81287562,139.55,139.48,4.06437809]
[1641781270744,4.81287562,139.55,139.52,4.06437809]
[1641781271143,27.66479,139.53,139.52,4.06437809]
[1641781271745,27.66479,139.53,139.46,27.66479]
[1641781271746,5.73424063,139.52,139.46,27.66479]
[1641781272143,5.73424063,139.52,139.45,68.88812232]
[1641781272343,5.73424063,139.52,139.45,15.15542232]
[1641781272645,5.73424063,139.52,139.46,15.15542232]
[1641781273245,1.53174844,139.51,139.47,4.06638185]
[1641781273644,1.53174844,139.51,139.46,4.06638185]
[1641781273943,1.53174844,139.52,139.46,4.06638185]
[1641781274144,1.53174844,139.52,139.48,2.48079815]
[1641781274543,53.4276,139.59,139.48,2.48079815]
[1641781274743,53.4276,139.59,139.48,15.15542232]
[1641781274944,1.53127855,139.57,139.49,4.06638185]
[1641781275143,29.19606855,139.57,139.49,4.06638185]
[1641781275343,27.66479,139.57,139.49,4.06638185]
[1641781275745,1.53127855,139.56,139.5,2.48079815]
[1641781276145,1.53127855,139.56,139.51,4.06638185]
[1641781276752,5.53127855,139.56,139.51,4.06638185]
[1641781277049,27.66479,139.54,139.51,4.06638185]
[1641781277449,1.53127855,139.53,139.48,4.06638185]
[1641781278549,5.732556,139.56,139.47,9.85838185]
[1641781278750,5.732556,139.56,139.49,2.48170046]
[1641781278952,1.52973731,139.55,139.49,8.45070046]
[1641781279152,1.52973731,139.55,139.49,36.11549046]
[1641781279352,5.732556,139.56,139.5,21.70350463]
[1641781279954,1.52985193,139.55,139.51,4.06638185]
[1641781280656,1.52985193,139.55,139.51,6.54808231]
[1641781281255,1.52985193,139.55,139.52,6.54808231]
[1641781281757,1.52985193,139.55,139.53,4.06638185]
[1641781281960,1.52985193,139.55,139.53,6.54808231]
[1641781282559,1.52985193,139.55,139.54,4.06638185]
[1641781282958,27.66479,139.59,139.54,4.06638185]
[1641781283458,1.52940353,139.58,139.53,4.06638185]
[1641781283858,1.52940353,139.6,139.53,4.06638185]
[1641781284459,1.52940353,139.6,139.54,2.48116886]
[1641781285362,1.52940353,139.6,139.55,4.06638185]
[1641781285961,1.52940353,139.6,139.55,10.76138185]
[1641781286561,1.52940353,139.6,139.56,4.06638185]
[1641781286762,1.52940353,139.6,139.56,6.54773513]
[1641781287563,1.52940353,139.6,139.57,4.06638185]
[1641781287962,1.52940353,139.62,139.56,4.06638185]
[1641781288764,1.52940353,139.62,139.56,5.85638185]
[1641781288963,1.52940353,139.65,139.56,5.85638185]
[1641781289164,1.52940353,139.65,139.57,2.48059006]
[1641781289464,1.52940353,139.65,139.57,34.21176191]
[1641781289865,1.52940353,139.66,139.58,4.06638185]
[1641781290064,1.52940353,139.66,139.58,10.71738185]
[1641781290266,1.52940353,139.66,139.58,13.19797191]
[1641781290767,1.52940353,139.66,139.59,4.06638185]
[1641781292667,1.52940353,139.66,139.58,4.06638185]
[1641781292868,5.52940353,139.66,139.58,4.06638185]
[1641781293270,1.52940353,139.66,139.58,4.06638185]
[1641781294470,5.52940353,139.66,139.58,4.06638185]
[1641781294971,1.52940353,139.65,139.58,4.06638185]
[1641781296970,19.31432392,139.65,139.58,4.06638185]
[1641781297272,5.73012453,139.62,139.58,4.06638185]
[1641781297473,14.44912453,139.62,139.58,4.06638185]
[1641781297870,1.52940353,139.61,139.57,4.06638185]
[1641781298671,1.52940353,139.61,139.55,4.06638185]
[1641781299271,1.52940353,139.61,139.56,2.47441184]
[1641781299972,1.52940353,139.61,139.57,4.06638185]
[1641781300974,1.52940353,139.61,139.55,4.06638185]
[1641781301173,8.09340353,139.61,139.55,4.06638185]
[1641781301874,1.52940353,139.6,139.55,4.06638185]
[1641781302078,1.52940353,139.6,139.56,2.47550326]
[1641781302575,1.52940353,139.61,139.57,4.06638185]
[1641781303878,1.52940353,139.61,139.55,4.06638185]
[1641781305082,1.52940353,139.61,139.56,2.4775121]
[1641781305481,1.52940353,139.61,139.57,4.06638185]
[1641781306289,1.52940353,139.61,139.57,15.69538185]
[1641781306490,1.52940353,139.61,139.57,13.48538185]
[1641781306690,1.52940353,139.66,139.58,4.06638185]
[1641781307288,1.52940353,139.66,139.59,2.47815651]
[1641781307489,1.52940353,139.66,139.59,30.14294651]
[1641781308089,1.52940353,139.66,139.6,4.06638185]
[1641781308289,1.52940353,139.66,139.6,6.54453836]
[1641781308488,1.52940353,139.66,139.6,14.13453836]
[1641781308892,1.52940353,139.66,139.61,6.54453836]
[1641781309295,1.52940353,139.66,139.62,4.06638185]
[1641781310498,3.53e-06,139.66,139.62,8.06638185]
[1641781310798,3.53e-06,139.69,139.64,4.0]
[1641781310998,3.53e-06,139.69,139.64,11.565]
[1641781311598,3.53e-06,139.69,139.67,27.66479]
[1641781311799,40.39149881,139.73,139.68,11.15333166]
[1641781312099,15.1543941,139.75,139.69,4.0]
[1641781312899,40.39149881,139.78,139.7,4.0]
[1641781313104,5.72315555,139.79,139.7,14.98994997]
[1641781313500,1.37282524,139.78,139.72,27.66479]
[1641781314000,1.37282524,139.79,139.73,4.05907167]
[1641781314198,1.37282524,139.79,139.73,11.59207167]
[1641781314399,1.37282524,139.79,139.74,4.05907167]
[1641781314599,1.37282524,139.81,139.74,4.05907167]
[1641781315401,1.37282524,139.81,139.73,4.05907167]
[1641781318502,4.0,139.8,139.73,4.05907167]
[1641781318702,11.15537906,139.8,139.73,4.05907167]
[1641781318902,5.72405694,139.77,139.73,4.05907167]
[1641781319102,5.72405694,139.77,139.7,4.05907167]
[1641781319503,1.37282524,139.76,139.7,4.05907167]
[1641781319703,34.76176074,139.76,139.7,4.05907167]
[1641781319905,1.37282524,139.75,139.7,4.05907167]
[1641781320303,1.37282524,139.74,139.7,4.05907167]
[1641781321103,1.37282524,139.73,139.7,4.05907167]
[1641781321303,1.37282524,139.73,139.7,5.84807167]
[1641781321505,5.72304807,139.79,139.7,5.84807167]
[1641781321803,1.06715635,139.78,139.71,4.05907167]
[1641781322907,1.06715635,139.78,139.73,4.0]
[1641781323108,1.06715635,139.78,139.73,7.792]
[1641781323309,1.06715635,139.78,139.74,4.05907167]
[1641781323708,1.06715635,139.81,139.74,4.05907167]
[1641781325711,1.06715635,139.81,139.76,27.66479]
[1641781325910,1.06715635,139.81,139.76,35.80179]
[1641781326511,1.06715635,139.81,139.77,4.05907167]
[1641781327714,28.73194635,139.81,139.77,4.05907167]
[1641781329215,9.7226986,139.8,139.74,4.05907167]
[1641781329615,9.7226986,139.8,139.7,4.05907167]
[1641781329814,27.66479,139.78,139.7,4.05907167]
[1641781330016,33.38833545,139.78,139.7,4.05907167]
[1641781333820,61.05312545,139.78,139.7,4.05907167]
[1641781334319,66.77655556,139.78,139.7,4.05907167]
[1641781334521,5.72423705,139.76,139.7,4.05907167]
[1641781336024,55.32958,139.78,139.7,4.05907167]
[1641781336223,55.32958,139.78,139.7,9.95807167]
[1641781336725,55.32958,139.78,139.71,4.05907167]
[1641781337828,27.66479,139.78,139.71,4.05907167]
[1641781339029,1.06860469,139.77,139.71,4.05907167]
[1641781341027,1.06860469,139.77,139.72,2.48199916]
[1641781341729,1.06860469,139.77,139.73,4.05907167]
[1641781341929,1.06860469,139.77,139.73,12.08307167]
[1641781342328,5.06860469,139.77,139.73,12.08307167]
[1641781342527,5.06860469,139.77,139.74,4.05907167]
[1641781342728,2.57609919,139.76,139.74,4.05907167]
[1641781342927,3.64470388,139.76,139.74,4.05907167]
[1641781343329,1.06860469,139.75,139.74,4.05907167]
[1641781343932,1.06860469,139.77,139.74,4.05907167]
[1641781344530,5.06860469,139.77,139.74,4.05907167]
[1641781344732,5.06860469,139.77,139.75,2.48153467]
[1641781345031,9.72360775,139.78,139.75,2.48153467]
[1641781345233,5.72360775,139.78,139.75,2.48153467]
[1641781345431,1.06860469,139.77,139.76,4.05907167]
[1641781345631,1.06860469,139.77,139.76,12.86907167]
[1641781345832,1.06860469,139.77,139.76,8.81]
[1641781346433,1.06860469,139.77,139.76,12.86907167]
[1641781355043,6.79248888,139.77,139.76,12.86907167]
[1641781355246,6.79248888,139.77,139.72,15.17463286]
[1641781355643,5.72388419,139.77,139.72,15.17463286]
[1641781356448,1.88055626,139.76,139.73,4.0593397]
[1641781356647,1.88055626,139.76,139.73,13.4903397]
[1641781356847,27.66479,139.75,139.73,13.4903397]
[1641781357248,27.66479,139.75,139.74,4.0593397]
[1641781357447,27.66479,139.75,139.74,6.54136413]
[1641781357646,29.54524766,139.75,139.74,6.54136413]
[1641781358046,6.86799504,139.78,139.74,6.54136413]
[1641781358247,62.93481114,139.82,139.74,6.54136413]
[1641781358446,10.9,139.83,139.74,6.54136413]
[1641781358646,44.39149881,139.84,139.74,2.48202443]
[1641781358847,2.57754708,139.81,139.75,2.48202443]
[1641781359448,1.31601508,139.8,139.76,4.05866428]
[1641781359647,1.31601508,139.8,139.76,11.37266428]
[1641781360248,1.31601508,139.8,139.77,4.05866428]
[1641781361051,1.31601508,139.81,139.77,4.05866428]
[1641781362053,1.31601508,139.82,139.77,4.05866428]
[1641781363258,2.57608244,139.81,139.77,4.05866428]
[1641781363656,1.31601508,139.8,139.77,4.05866428]
[1641781365158,4.0,139.81,139.74,4.05866428]
[1641781365361,9.72246643,139.8,139.74,4.05866428]
[1641781365558,11.03848151,139.8,139.74,4.05866428]
[1641781365759,5.72289357,139.79,139.74,4.05866428]
[1641781365958,7.03890865,139.79,139.74,4.05866428]
[1641781366161,16.21490865,139.79,139.74,4.05866428]
[1641781366361,5.72411741,139.76,139.74,4.05866428]
[1641781366560,16.80511741,139.76,139.74,4.05866428]
[1641781366758,1.31601508,139.75,139.72,4.05866428]
[1641781367160,27.66479,139.74,139.72,4.05866428]
[1641781367558,31.66479,139.74,139.72,4.05866428]
[1641781367858,1.31601508,139.73,139.68,15.17463286]
[1641781368060,1.31601508,139.73,139.67,71.27353286]
[1641781368659,1.31601508,139.73,139.67,15.17463286]
[1641781369060,1.31601508,139.73,139.68,2.4825433]
[1641781371060,1.31601508,139.73,139.68,17.65717616]
[1641781371361,1.31601508,139.73,139.69,27.66479]
[1641781371762,1.31601508,139.75,139.69,27.66479]
[1641781371960,1.31601508,139.75,139.69,36.12379]
[1641781372460,1.31601508,139.75,139.7,2.4825433]
[1641781373061,5.31601508,139.75,139.7,2.4825433]
[1641781373260,1.31601508,139.75,139.7,2.4825433]
[1641781373466,1.31601508,139.74,139.7,2.4825433]
[1641781373861,1.31601508,139.75,139.7,2.4825433]
[1641781376662,1.31601508,139.76,139.7,2.4825433]
[1641781377062,1.31601508,139.76,139.7,27.64083329]
[1641781378564,15.17463286,139.81,139.72,4.0]
[1641781378763,15.17463286,139.81,139.73,4.0]
[1641781378962,15.17463286,139.81,139.74,1.788]
[1641781379365,2.5737389,139.82,139.78,27.66479]
[1641781379563,2.5737389,139.82,139.78,8.178]
[1641781379765,2.80419189,139.81,139.78,8.178]
[1641781380364,6.80419189,139.81,139.78,8.178]
[1641781380564,2.80419189,139.81,139.78,8.178]
[1641781381066,2.80419189,139.82,139.78,8.178]
[1641781381265,2.80419189,139.82,139.75,6.907]
[1641781382867,2.80419189,139.82,139.76,4.05857339]
[1641781383669,2.80419189,139.82,139.74,4.05857339]
[1641781383867,2.80419189,139.82,139.74,8.05857339]
[1641781384368,2.80419189,139.82,139.74,4.05857339]
[1641781384569,2.80419189,139.82,139.75,4.05857339]
[1641781384970,2.80419189,139.82,139.75,9.234]
[1641781385171,2.80419189,139.82,139.75,11.022]
[1641781385371,2.80419189,139.82,139.77,27.66479]
[1641781385771,2.80419189,139.83,139.78,4.05857339]
[1641781385971,2.80419189,139.83,139.78,12.89257339]
[1641781386173,2.80419189,139.82,139.78,12.89257339]
[1641781386574,2.80419189,139.81,139.79,4.05857339]
[1641781387172,2.80419189,139.8,139.79,4.05857339]
[1641781389275,2.80419189,139.8,139.75,4.05857339]
[1641781389476,2.80419189,139.8,139.79,4.05857339]
[1641781390079,2.80419189,139.8,139.77,7.991]
[1641781390480,8.23831855,139.84,139.78,4.05857339]
[1641781390779,2.53872957,139.83,139.78,4.05857339]
[1641781391880,2.53872957,139.83,139.78,31.72336339]
[1641781392683,2.53872957,139.83,139.79,4.05857339]
[1641781394585,2.53872957,139.83,139.78,4.05857339]
[1641781395986,2.53872957,139.83,139.78,31.72336339]
[1641781396687,2.53872957,139.83,139.79,4.05857339]
[1641781398388,2.53872957,139.83,139.76,4.05857339]
[1641781398788,2.53872957,139.83,139.76,8.05857339]
[1641781398990,2.53872957,139.83,139.77,4.0]
[1641781399288,2.53872957,139.83,139.77,8.05857339]
[1641781399790,2.53872957,139.83,139.78,6.53292225]
[1641781399990,2.53872957,139.83,139.78,42.45071225]
[1641781400392,2.53872957,139.83,139.79,4.05857339]
[1641781401494,2.53872957,139.83,139.79,8.05857339]
[1641781401693,6.86391283,139.87,139.8,1.788]
[1641781401893,2.53826471,139.85,139.82,4.0]
[1641781402095,6.86258036,139.89,139.83,27.66479]
[1641781403303,1.01505011,139.88,139.84,4.05593766]
[1641781404906,1.01505011,139.89,139.84,4.05593766]
[1641781408610,6.73384832,139.89,139.84,4.05593766]
[1641781408809,4.0,139.88,139.84,4.05593766]
[1641781409009,5.71963154,139.87,139.84,4.05593766]
[1641781409212,6.73468165,139.87,139.83,4.05593766]
[1641781409612,6.73468165,139.87,139.79,58.3238]
[1641781409613,1.01505011,139.86,139.81,4.05593766]
[1641781410014,1.01505011,139.86,139.8,4.05593766]
[1641781411219,1.01505011,139.87,139.8,4.05593766]
[1641781416324,1.01505011,139.87,139.81,2.4758481]
[1641781416523,1.01505011,139.87,139.81,8.6408481]
[1641781416924,1.01505011,139.87,139.82,4.05593766]
[1641781420430,1.01505011,139.87,139.82,31.72072766]
[1641781420731,1.01505011,139.87,139.83,4.05593766]
[1641781421731,1.01505011,139.88,139.83,4.05593766]
[1641781422030,1.01505011,139.89,139.83,4.05593766]
[1641781422233,5.01505011,139.89,139.83,4.05593766]
[1641781422430,5.71962483,139.87,139.83,4.05593766]
[1641781422830,1.01505011,139.86,139.83,4.05593766]
[1641781423230,1.01505011,139.86,139.82,4.05593766]
[1641781432945,1.01505011,139.86,139.83,2.48269467]
[1641781433444,1.01505011,139.86,139.84,4.05593766]
[1641781433646,1.01505011,139.86,139.84,10.58893766]
[1641781434445,1.01505011,139.86,139.85,4.05593766]
[1641781435046,3.59337057,139.86,139.85,4.05593766]
[1641781436747,7.38262604,139.88,139.85,4.05593766]
[1641781436951,7.38262604,139.88,139.85,8.05593766]
[1641781437146,88.05731161,139.94,139.85,4.05593766]
[1641781437347,88.05731161,139.94,139.85,60.48483766]
[1641781437545,88.05731161,139.94,139.85,64.48483766]
[1641781437747,88.05731161,139.94,139.86,4.0]
[1641781437946,0.81093563,139.93,139.86,4.05593766]
[1641781438148,0.81093563,139.93,139.86,8.05593766]
[1641781438448,0.81093563,139.93,139.86,18.05600909]
[1641781438846,0.81093563,139.93,139.88,27.66479]
[1641781439048,0.81093563,139.93,139.88,36.14179]
[1641781439246,0.81093563,139.93,139.89,4.05593766]
[1641781444053,0.81093563,139.95,139.89,4.05593766]
[1641781447459,10.52739566,139.95,139.89,4.05593766]
[1641781447864,5.71726577,139.93,139.89,4.05593766]
[1641781448059,11.77826577,139.93,139.89,4.05593766]
[1641781448261,11.77826577,139.93,139.85,54.6429]
[1641781448262,0.81093563,139.92,139.86,4.05593766]
[1641781449065,0.81093563,139.94,139.86,4.05593766]
[1641781449265,5.71748552,139.93,139.86,4.05593766]
[1641781449963,0.81093563,139.92,139.86,4.05593766]
[1641781453368,0.81093563,139.94,139.86,4.05593766]
[1641781453568,0.81093563,139.94,139.86,11.72393766]
[1641781454269,0.81093563,139.94,139.87,4.05593766]
[1641781454967,27.66479,139.93,139.87,4.05593766]
[1641781455167,0.81093563,139.94,139.87,4.05593766]
[1641781457169,27.66479,139.93,139.87,4.05593766]
[1641781457769,0.81093563,139.92,139.87,4.05593766]
[1641781462874,0.81093563,139.93,139.87,4.05593766]
[1641781463273,0.81093563,139.94,139.87,4.05593766]
[1641781464174,0.81093563,139.94,139.87,9.476]
[1641781464577,0.81093563,139.94,139.88,4.05593766]
[1641781465277,27.66479,139.93,139.87,4.05593766]
[1641781465678,0.81093563,139.92,139.87,4.05593766]
[1641781466679,0.81093563,139.94,139.86,4.05593766]
[1641781466980,0.81093563,139.94,139.86,36.64798635]
[1641781467280,27.66479,139.93,139.86,36.64798635]
[1641781467479,0.81093563,139.94,139.87,4.05593766]
[1641781469484,5.71721222,139.93,139.87,4.05593766]
[1641781470084,0.81093563,139.92,139.87,4.05593766]
[1641781470485,5.71799611,139.91,139.87,4.05593766]
[1641781470885,0.81093563,139.92,139.87,4.05593766]
[1641781471086,0.81093563,139.9,139.87,4.05593766]
[1641781471487,43.64484328,139.93,139.87,4.05593766]
[1641781471786,0.81093563,139.92,139.87,8.327]
[1641781472288,0.81093563,139.92,139.88,4.05593766]
[1641781473589,0.81093563,139.93,139.88,31.72072766]
[1641781474087,0.81093563,139.93,139.89,4.05593766]
[1641781474893,0.81093563,139.94,139.89,4.05593766]
[1641781476292,0.81093563,139.94,139.89,8.05593766]
[1641781476693,0.81093563,139.94,139.9,4.0]
[1641781476894,0.81093563,139.94,139.9,15.00993766]
[1641781477296,0.81093563,139.96,139.91,4.05593766]
[1641781477694,0.81093563,139.96,139.91,6.5384427]
[1641781478393,0.81093563,139.96,139.92,4.05593766]
[1641781478795,0.81093563,139.96,139.92,6.5384427]
[1641781479495,0.81093563,139.96,139.93,4.05593766]
[1641781480697,2.573309,139.95,139.9,4.05593766]
[1641781481095,0.81093563,139.94,139.9,4.05593766]
[1641781481397,0.81093563,139.94,139.91,2.47955253]
[1641781481797,0.81093563,139.96,139.92,4.05593766]
[1641781482699,6.52704138,139.96,139.91,4.05593766]
[1641781482903,0.81093563,139.96,139.91,8.05593766]
[1641781483100,0.81093563,139.95,139.91,4.05593766]
[1641781483301,0.81093563,139.95,139.92,2.47927177]
[1641781483501,0.81093563,139.97,139.93,27.66479]
[1641781483703,0.81093563,139.97,139.93,33.69379]
[1641781483902,4.81093563,139.99,139.94,4.05593766]
[1641781484303,5.71517912,139.98,139.94,4.05593766]
[1641781484502,13.35711475,139.98,139.94,4.05593766]
[1641781484903,0.81093563,139.97,139.91,4.05593766]
[1641781485712,28.47572563,139.97,139.92,2.47577807]
[1641781486407,0.81093563,139.96,139.93,4.05593766]
[1641781487409,0.81093563,139.97,139.93,4.05593766]
[1641781488111,15.16911765,140.02,139.95,4.0]
[1641781488309,15.16911765,140.02,139.95,12.316]
[1641781488509,15.16911765,140.02,139.95,8.316]
[1641781488709,8.22706657,140.03,139.96,2.4740907]
[1641781489111,4.0,140.02,139.96,2.4740907]
[1641781489311,9.976,140.02,139.96,2.4740907]
[1641781489511,6.524492,140.01,139.97,4.05235393]
[1641781489912,0.81047079,140.0,139.97,4.05235393]
[1641781490213,9.71483573,139.99,139.97,4.05235393]
[1641781490412,17.15283573,139.99,139.97,4.05235393]
[1641781490612,13.15283573,139.99,139.97,4.05235393]
[1641781490815,0.81047079,139.98,139.97,4.05235393]
[1641781491216,13.27747079,139.98,139.92,27.66479]
[1641781491415,9.71568248,139.97,139.9,15.16905954]
[1641781491615,33.38132354,139.95,139.9,15.16905954]
[1641781491815,42.05932354,139.95,139.9,15.16905954]
[1641781492114,5.7168808,139.94,139.9,15.16905954]
[1641781492316,9.7168808,139.94,139.9,15.16905954]
[1641781492615,1.11582396,139.93,139.9,2.47153099]
[1641781493619,1.11582396,139.93,139.87,2.47153099]
[1641781495423,40.39149881,140.03,139.92,11.14030703]
[1641781495623,40.39149881,140.03,139.99,27.66479]
[1641781496223,7.14183688,140.06,139.99,27.66479]
[1641781496423,4.0,140.03,139.99,27.66479]
[1641781496622,4.0,140.03,139.94,1.784]
[1641781497123,0.81018445,140.02,139.94,1.784]
[1641781497523,4.0,140.01,139.93,1.784]
[1641781497722,31.66479,140.01,139.92,75.19659584]
[1641781497924,4.0,139.99,139.94,2.46862606]
[1641781498122,11.696,139.99,139.94,2.46862606]
[1641781498523,0.81018445,139.98,139.94,2.46862606]
[1641781498922,0.81018445,139.98,139.93,7.14030703]
[1641781498923,4.0,140.03,139.93,62.14350703]
[1641781499323,1.68033956,140.02,139.93,62.14350703]
[1641781499523,15.13333956,140.02,139.93,62.14350703]
[1641781499827,1.68033956,140.01,139.94,2.4683939]
[1641781500022,5.68033956,140.01,139.94,2.4683939]
[1641781500224,4.0,140.0,139.94,2.4683939]
[1641781500626,1.68033956,139.99,139.94,2.4683939]
[1641781500823,9.06533956,139.99,139.94,2.4683939]
[1641781501624,9.06533956,139.99,139.9,84.11569]
[1641781501625,1.68033956,139.98,139.9,84.11569]
[1641781501825,1.68033956,139.98,139.9,137.56589]
[1641781502025,1.68033956,139.97,139.9,137.56589]
[1641781502229,1.68033956,139.97,139.91,2.46967569]
[1641781502427,27.66479,140.0,139.91,2.46967569]
[1641781503028,1.34600439,139.99,139.91,2.46967569]
[1641781503428,1.34600439,140.0,139.91,12.4100742]
[1641781503727,1.34600439,140.0,139.94,27.66479]
[1641781504129,1.34600439,140.0,139.95,2.46967569]
[1641781505326,1.34600439,140.0,139.95,8.067]
[1641781506228,1.34600439,140.0,139.96,2.47269761]
[1641781506628,1.34600439,140.0,139.96,6.52451981]
[1641781507029,1.34600439,140.0,139.97,4.0518222]
[1641781507630,1.34600439,140.0,139.97,31.7166122]
[1641781507831,4.39e-06,140.0,139.97,31.7166122]
[1641781508232,4.0,140.03,139.97,27.66479]
[1641781508435,9.71323289,140.03,139.97,27.66479]
[1641781509032,119.60743797,140.06,139.97,27.66479]
[1641781509231,0.9417412,140.02,139.98,4.05158308]
[1641781509632,0.9417412,140.05,139.98,4.05158308]
[1641781510233,4.9417412,140.05,139.98,4.05158308]
[1641781510433,5.71282957,140.04,139.98,4.05158308]
[1641781511037,0.9417412,140.03,139.99,2.47229609]
[1641781511734,0.9417412,140.03,140.0,4.05158308]
[1641781512333,6.85368713,140.08,140.0,10.06658308]
[1641781512534,54.9662,140.09,140.0,6.015]
[1641781512734,54.9662,140.09,140.0,7.799]
[1641781513336,2.56326745,140.08,140.0,7.799]
[1641781513739,1.25070127,140.07,140.03,27.66479]
[1641781513937,1.25070127,140.07,140.03,34.57679]
[1641781514138,1.25070127,140.07,140.04,4.05057188]
[1641781515039,1.25070127,140.07,140.03,7.541]
[1641781515438,1.25070127,140.08,140.04,4.05057188]
[1641781520146,5.25070127,140.08,140.04,4.05057188]
[1641781520347,1.25070127,140.08,140.04,4.05057188]
[1641781520548,5.25070127,140.08,140.04,4.05057188]
[1641781520747,5.71169808,140.07,140.04,4.05057188]
[1641781521148,1.25070127,140.06,140.02,4.05057188]
[1641781521550,5.71169808,140.07,140.02,4.05057188]
[1641781521551,1.25070127,140.05,140.02,4.05057188]
[1641781521949,1.25070127,140.04,140.02,4.05057188]
[1641781522549,1.25070127,140.03,140.02,4.05057188]
[1641781522950,1.25070127,140.03,140.0,4.05057188]
[1641781523350,5.71169808,140.07,140.0,4.05057188]
[1641781523750,0.81021865,140.06,139.99,4.05057188]
[1641781523951,0.81021865,140.06,140.01,2.47649011]